{"text_format":"3","workbook":"xlsx","n_sheets":4,"sheets":["Peňažný tok","Mesačné príjmy","Mesačné výdavky","ÚDAJE GRAFU"],"not_rendered":{"charts":1,"defined_names":10},"read":"whole","date_system":"1900"}

{"sheet":"Peňažný tok","index":0,"n_rows":9,"n_cols":5,"rows_kept":9}
[null,"Názov"]
[null,"Rodinný rozpočet"]
[null,{"$f":"TEXT(TODAY(),\"mmmm\")","v":"január"}]
[null,{"$f":"YEAR(TODAY())","v":2017}]
[null,"Poznámka: Tabuľka peňažného toku sa automaticky vypočíta na základe položiek v hárkoch Mesačné príjmy a Mesačné výdavky"]
[null,"Peňažný tok","Predpokladané","Skutočné","Rozdiel"]
[null,"Celkové príjmy",{"$f":"Príjmy[[#Totals],[Predpokladané]]","v":{"v":5700,"d":"5,700"}},{"$f":"Príjmy[[#Totals],[Skutočné]]","v":{"v":5500,"d":"5,500"}},{"$f":"Príjmy[[#Totals],[Rozdiel]]","v":-200}]
[null,"Celkové výdavky",{"$f":"Výdavky[[#Totals],[Predpokladané]]","v":{"v":3603,"d":"3,603"}},{"$f":"Výdavky[[#Totals],[Skutočné]]","v":{"v":3655,"d":"3,655"}},{"$f":"Výdavky[[#Totals],[Rozdiel]]","v":-52}]
[null,"Celková hotovosť",{"$f":"C7-C8","v":{"v":2097,"d":"2,097"}},{"$f":"D7-D8","v":{"v":1845,"d":"1,845"}},{"$f":"SUBTOTAL(109,PeňažnýTok[Rozdiel])","v":-252}]

{"sheet":"Mesačné príjmy","index":1,"n_rows":9,"n_cols":5,"rows_kept":9}
[null,{"$f":"Názov","v":"Názov"}]
[null,{"$f":"NadpisRozpočtu","v":"Rodinný rozpočet"}]
[null,{"$f":"Mesiac","v":"január"}]
[null,{"$f":"Rok","v":2017}]
[null,"Mesačné príjmy","Predpokladané","Skutočné","Rozdiel"]
[null,"Príjem 1",{"v":4000,"d":"4,000"},{"v":4000,"d":"4,000"},{"$f":"Príjmy[[#This Row],[Skutočné]]-Príjmy[[#This Row],[Predpokladané]]","v":0}]
[null,"Príjem 2",{"v":1400,"d":"1,400"},{"v":1500,"d":"1,500"},{"$f":"Príjmy[[#This Row],[Skutočné]]-Príjmy[[#This Row],[Predpokladané]]","v":100}]
[null,"Iné príjmy",300,0,{"$f":"Príjmy[[#This Row],[Skutočné]]-Príjmy[[#This Row],[Predpokladané]]","v":-300}]
[null,"Celkové príjmy",{"$f":"SUBTOTAL(109,Príjmy[Predpokladané])","v":{"v":5700,"d":"5,700"}},{"$f":"SUBTOTAL(109,Príjmy[Skutočné])","v":{"v":5500,"d":"5,500"}},{"$f":"SUBTOTAL(109,Príjmy[Rozdiel])","v":-200}]

{"sheet":"Mesačné výdavky","index":2,"n_rows":26,"n_cols":5,"rows_kept":26}
[null,{"$f":"Názov","v":"Názov"}]
[null,{"$f":"NadpisRozpočtu","v":"Rodinný rozpočet"}]
[null,{"$f":"Mesiac","v":"január"}]
[null,{"$f":"Rok","v":2017}]
[null,"Mesačné výdavky","Predpokladané","Skutočné","Rozdiel"]
[null,"Bývanie",{"v":1500,"d":"1,500"},{"v":1500,"d":"1,500"},{"$f":"Výdavky[[#This Row],[Predpokladané]]-Výdavky[[#This Row],[Skutočné]]","v":0}]
[null,"Potraviny",250,280,{"$f":"Výdavky[[#This Row],[Predpokladané]]-Výdavky[[#This Row],[Skutočné]]","v":-30}]
[null,"Telefón",38,38,{"$f":"Výdavky[[#This Row],[Predpokladané]]-Výdavky[[#This Row],[Skutočné]]","v":0}]
[null,"Elektrina/plyn",65,78,{"$f":"Výdavky[[#This Row],[Predpokladané]]-Výdavky[[#This Row],[Skutočné]]","v":-13}]
[null,"Vodné/stočné/odvoz odpadu",25,21,{"$f":"Výdavky[[#This Row],[Predpokladané]]-Výdavky[[#This Row],[Skutočné]]","v":4}]
[null,"Káblová televízia",75,83,{"$f":"Výdavky[[#This Row],[Predpokladané]]-Výdavky[[#This Row],[Skutočné]]","v":-8}]
[null,"Internet",60,60,{"$f":"Výdavky[[#This Row],[Predpokladané]]-Výdavky[[#This Row],[Skutočné]]","v":0}]
[null,"Údržba/opravy",0,60,{"$f":"Výdavky[[#This Row],[Predpokladané]]-Výdavky[[#This Row],[Skutočné]]","v":-60}]
[null,"Starostlivosť o deti",180,150,{"$f":"Výdavky[[#This Row],[Predpokladané]]-Výdavky[[#This Row],[Skutočné]]","v":30}]
[null,"Školné",250,250,{"$f":"Výdavky[[#This Row],[Predpokladané]]-Výdavky[[#This Row],[Skutočné]]","v":0}]
[null,"Domáce zvieratá",75,80,{"$f":"Výdavky[[#This Row],[Predpokladané]]-Výdavky[[#This Row],[Skutočné]]","v":-5}]
[null,"Doprava",280,260,{"$f":"Výdavky[[#This Row],[Predpokladané]]-Výdavky[[#This Row],[Skutočné]]","v":20}]
[null,"Osobná starostlivosť",75,65,{"$f":"Výdavky[[#This Row],[Predpokladané]]-Výdavky[[#This Row],[Skutočné]]","v":10}]
[null,"Poistenie",255,255,{"$f":"Výdavky[[#This Row],[Predpokladané]]-Výdavky[[#This Row],[Skutočné]]","v":0}]
[null,"Kreditné karty",100,100,{"$f":"Výdavky[[#This Row],[Predpokladané]]-Výdavky[[#This Row],[Skutočné]]","v":0}]
[null,"Pôžičky",0,0,{"$f":"Výdavky[[#This Row],[Predpokladané]]-Výdavky[[#This Row],[Skutočné]]","v":0}]
[null,"Dane",0,0,{"$f":"Výdavky[[#This Row],[Predpokladané]]-Výdavky[[#This Row],[Skutočné]]","v":0}]
[null,"Darčeky/charitatívne príspevky",150,150,{"$f":"Výdavky[[#This Row],[Predpokladané]]-Výdavky[[#This Row],[Skutočné]]","v":0}]
[null,"Úspory",225,225,{"$f":"Výdavky[[#This Row],[Predpokladané]]-Výdavky[[#This Row],[Skutočné]]","v":0}]
[null,"Iné",0,0,{"$f":"Výdavky[[#This Row],[Predpokladané]]-Výdavky[[#This Row],[Skutočné]]","v":0}]
[null,"Spolu",{"$f":"SUBTOTAL(109,Výdavky[Predpokladané])","v":{"v":3603,"d":"3,603"}},{"$f":"SUBTOTAL(109,Výdavky[Skutočné])","v":{"v":3655,"d":"3,655"}},{"$f":"SUBTOTAL(109,Výdavky[Rozdiel])","v":-52}]

{"sheet":"ÚDAJE GRAFU","index":3,"n_rows":6,"n_cols":4,"rows_kept":6,"hidden":true}
[null,"ÚDAJE GRAFU"]
[]
[null,null,"Predpokladané","Skutočné"]
[null,"Peňažný tok",{"$f":"PeňažnýTok[[#Totals],[Predpokladané]]","v":2097},{"$f":"PeňažnýTok[[#Totals],[Skutočné]]","v":1845}]
[null,"Mesačné príjmy",{"$f":"Príjmy[[#Totals],[Predpokladané]]","v":5700},{"$f":"Príjmy[[#Totals],[Skutočné]]","v":5500}]
[null,"Mesačné výdavky",{"$f":"Výdavky[[#Totals],[Predpokladané]]","v":3603},{"$f":"Výdavky[[#Totals],[Skutočné]]","v":3655}]